[Event "*** Titled Tuesday Blitz"]
[Site "Chess.com"]
[Date "2019.05.07"]
[Round "3"]
[White "GuerrieroFromLevant"]
[Black "IMRosen"]
[Result "1-0"]
[WhiteElo "2270"]
[BlackElo "2392"]
[TimeControl "180+2"]
[EndTime "13:42:43 PDT"]
[Termination "GuerrieroFromLevant won on time"]

1. e4 {[%clk 0:03:01.9]} 1... e5 {[%clk 0:03:00.2]} 2. Nf3 {[%clk 0:02:59.6]}
2... Nf6 {[%clk 0:03:00.5]} 3. Nxe5 {[%clk 0:02:57.3]} 3... Nc6 {[%clk
0:03:01.5]} 4. Nxc6 {[%clk 0:02:57]} 4... dxc6 {[%clk 0:03:03.4]} 5. Nc3 {[%clk
0:02:57.5]} 5... Bc5 {[%clk 0:03:04.2]} 6. Be2 {[%clk 0:02:55.3]} 6... h5 {[%clk
0:03:02.5]} 7. d3 {[%clk 0:02:53.7]} 7... Ng4 {[%clk 0:03:03.4]} 8. Bxg4 {[%clk
0:02:46.3]} 8... hxg4 {[%clk 0:03:04.5]} 9. Bf4 {[%clk 0:02:44.2]} 9... Be6
{[%clk 0:02:53.9]} 10. Qd2 {[%clk 0:02:36.9]} 10... Bd4 {[%clk 0:02:45.8]} 11.
O-O-O {[%clk 0:02:35]} 11... Rh5 {[%clk 0:02:29.8]} 12. a3 {[%clk 0:02:31.5]}
12... Rc5 {[%clk 0:02:00.7]} 13. Ne2 {[%clk 0:02:20.4]} 13... Bf6 {[%clk
0:00:26.8]} 14. d4 {[%clk 0:02:17.2]} 14... Rb5 {[%clk 0:00:27.7]} 15. c3 {[%clk
0:02:13.4]} 15... Bb3 {[%clk 0:00:25.9]} 16. Rde1 {[%clk 0:02:12.9]} 16... Qd7
{[%clk 0:00:27.5]} 17. e5 {[%clk 0:02:11.6]} 17... Be7 {[%clk 0:00:27.4]} 18. h3
{[%clk 0:01:59.5]} 18... O-O-O {[%clk 0:00:28]} 19. hxg4 {[%clk 0:02:00.7]}
19... Qxg4 {[%clk 0:00:29.9]} 20. Ng3 {[%clk 0:01:57.7]} 20... Qg6 {[%clk
0:00:28.7]} 21. Ne4 {[%clk 0:01:46.6]} 21... Bd5 {[%clk 0:00:26.9]} 22. f3
{[%clk 0:01:46.2]} 22... Rb6 {[%clk 0:00:25.5]} 23. g4 {[%clk 0:01:43.1]} 23...
Qe6 {[%clk 0:00:25.9]} 24. Ng5 {[%clk 0:01:37.3]} 24... Qd7 {[%clk 0:00:23.5]}
25. Rh7 {[%clk 0:01:32.5]} 25... Bxg5 {[%clk 0:00:13.8]} 26. Bxg5 {[%clk
0:01:33.3]} 26... Rg8 {[%clk 0:00:15.4]} 27. Qd3 {[%clk 0:01:26.2]} 27... Kb8
{[%clk 0:00:13.1]} 28. Reh1 {[%clk 0:01:21.7]} 28... Qe8 {[%clk 0:00:12.8]} 29.
Qf5 {[%clk 0:01:11.5]} 29... Be6 {[%clk 0:00:13.5]} 30. Qe4 {[%clk 0:01:10.9]}
30... a5 {[%clk 0:00:13.5]} 31. f4 {[%clk 0:01:10.3]} 31... Bd5 {[%clk
0:00:14.5]} 32. Qe2 {[%clk 0:01:10.5]} 32... Bxh1 {[%clk 0:00:15.5]} 33. Rxh1
{[%clk 0:01:12.4]} 33... Rh8 {[%clk 0:00:16.7]} 34. Rxh8 {[%clk 0:01:09.1]}
34... Qxh8 {[%clk 0:00:18.6]} 35. f5 {[%clk 0:01:10.6]} 35... Qh1+ {[%clk
0:00:19.5]} 36. Kc2 {[%clk 0:01:11.5]} 36... Qd5 {[%clk 0:00:09.9]} 37. e6
{[%clk 0:01:12.8]} 37... Qb3+ {[%clk 0:00:10.5]} 38. Kc1 {[%clk 0:01:13.3]}
38... fxe6 {[%clk 0:00:07.4]} 39. fxe6 {[%clk 0:01:14.3]} 39... c5 {[%clk
0:00:05.5]} 40. e7 {[%clk 0:01:14.3]} 40... Re6 {[%clk 0:00:06.3]} 41. e8=Q+
{[%clk 0:01:15.2]} 41... Rxe8 {[%clk 0:00:07.2]} 42. Qxe8+ {[%clk 0:01:17.1]}
42... Ka7 {[%clk 0:00:09.1]} 43. Qe2 {[%clk 0:01:15.9]} 43... cxd4 {[%clk
0:00:05.3]} 44. cxd4 {[%clk 0:01:17.2]} 44... Qd5 {[%clk 0:00:04.6]} 45. Be3
{[%clk 0:01:18.4]} 45... b6 {[%clk 0:00:02.8]} 46. Qc2 {[%clk 0:01:18.7]} 46...
Kb7 {[%clk 0:00:03.3]} 47. Kd2 {[%clk 0:01:19.2]} 47... Qg2+ {[%clk 0:00:04.4]}
48. Kd3 {[%clk 0:01:19.1]} 48... Qxg4 {[%clk 0:00:05.7]} 49. Qf2 {[%clk
0:01:19.9]} 49... Qg6+ {[%clk 0:00:05.6]} 50. Kc3 {[%clk 0:01:20.7]} 50... Qc6+
{[%clk 0:00:06.7]} 51. Kd2 {[%clk 0:01:22.2]} 51... a4 {[%clk 0:00:05.9]} 52.
Qf7 {[%clk 0:01:22.2]} 52... Qg2+ {[%clk 0:00:06.7]} 53. Kc3 {[%clk 0:01:19.8]}
53... Qc6+ {[%clk 0:00:07.4]} 54. Qc4 {[%clk 0:01:20.2]} 54... Qf3 {[%clk
0:00:07.7]} 55. Qd3 {[%clk 0:01:20.9]} 55... Qc6+ {[%clk 0:00:09.2]} 56. Kd2
{[%clk 0:01:22.4]} 56... Qg2+ {[%clk 0:00:10.6]} 57. Kc1 {[%clk 0:01:21.6]}
57... Qh1+ {[%clk 0:00:10.8]} 58. Kc2 {[%clk 0:01:22.8]} 58... Qc6+ {[%clk
0:00:12.3]} 59. Kb1 {[%clk 0:01:23.5]} 59... Qh1+ {[%clk 0:00:13.6]} 60. Bc1
{[%clk 0:01:24.3]} 60... Qd5 {[%clk 0:00:12]} 61. Qg6 {[%clk 0:01:24.6]} 61...
Qxd4 {[%clk 0:00:11.2]} 62. Qg2+ {[%clk 0:01:25.4]} 62... Ka7 {[%clk 0:00:11.1]}
63. Bd2 {[%clk 0:01:24.7]} 63... Qd3+ {[%clk 0:00:11.3]} 64. Ka1 {[%clk
0:01:25.2]} 64... g6 {[%clk 0:00:08.1]} 65. Bc3 {[%clk 0:01:25]} 65... Qd1+
{[%clk 0:00:07.3]} 66. Ka2 {[%clk 0:01:26.4]} 66... Qb3+ {[%clk 0:00:08.8]} 67.
Kb1 {[%clk 0:01:28]} 67... Qd1+ {[%clk 0:00:10.2]} 68. Ka2 {[%clk 0:01:29.6]}
68... Qb3+ {[%clk 0:00:07.3]} 69. Kb1 {[%clk 0:01:30.7]} 69... Qe6 {[%clk
0:00:06.6]} 70. Kc1 {[%clk 0:01:26.8]} 70... Qf5 {[%clk 0:00:04.3]} 71. Qc6
{[%clk 0:01:26.4]} 71... Qf4+ {[%clk 0:00:04.3]} 72. Bd2 {[%clk 0:01:25.8]}
72... Qe5 {[%clk 0:00:02.1]} 73. Qxg6 {[%clk 0:01:24.5]} 73... Qc5+ {[%clk
0:00:02.3]} 74. Qc2 {[%clk 0:01:24.2]} 74... Qg1+ {[%clk 0:00:03.3]} 75. Qd1
{[%clk 0:01:25.7]} 75... Qc5+ {[%clk 0:00:04.8]} 76. Kb1 {[%clk 0:01:27.1]}
76... Qd4 {[%clk 0:00:04.8]} 77. Qc1 {[%clk 0:01:26.3]} 77... Qe4+ {[%clk
0:00:04]} 78. Ka1 {[%clk 0:01:25.2]} 78... Kb7 {[%clk 0:00:04.1]} 79. Bf4 {[%clk
0:01:25.4]} 79... c6 {[%clk 0:00:03.1]} 80. Bd2 {[%clk 0:01:23.8]} 80... Qd4
{[%clk 0:00:02.8]} 81. Bc3 {[%clk 0:01:25]} 81... Qc4 {[%clk 0:00:03.8]} 82. Qe1
{[%clk 0:01:25.6]} 82... Ka6 {[%clk 0:00:04.3]} 83. Qg1 {[%clk 0:01:21.9]} 83...
Qb5 {[%clk 0:00:05]} 84. Qd4 {[%clk 0:01:21.5]} 84... Qb3 {[%clk 0:00:05.7]} 85.
Qd3+ {[%clk 0:01:19.5]} 85... Kb7 {[%clk 0:00:03.5]} 86. Qh7+ {[%clk 0:01:19.9]}
86... Ka6 {[%clk 0:00:04.4]} 87. Kb1 {[%clk 0:01:21.3]} 87... Qd5 {[%clk
0:00:04.9]} 88. Qc2 {[%clk 0:01:20.6]} 88... Qh1+ {[%clk 0:00:05.9]} 89. Qc1
{[%clk 0:01:21.7]} 89... Qe4+ {[%clk 0:00:06.8]} 90. Ka1 {[%clk 0:01:22.5]}
90... Qc4 {[%clk 0:00:07.4]} 91. Bd2 {[%clk 0:01:22.8]} 91... Qd5 {[%clk
0:00:06.6]} 92. Qf1+ {[%clk 0:01:22.2]} 92... Kb7 {[%clk 0:00:06.7]} 93. Bc3
{[%clk 0:01:23.3]} 93... Qe4 {[%clk 0:00:06.2]} 94. Qd1 {[%clk 0:01:18.3]} 94...
Qc4 {[%clk 0:00:05.8]} 95. Qd7+ {[%clk 0:01:17.5]} 95... Ka6 {[%clk 0:00:07.3]}
96. Kb1 {[%clk 0:01:14.9]} 96... Qf1+ {[%clk 0:00:07.8]} 97. Kc2 {[%clk
0:01:16]} 97... Qe2+ {[%clk 0:00:08]} 98. Qd2 {[%clk 0:01:17.2]} 98... Qe4+
{[%clk 0:00:09.6]} 99. Qd3+ {[%clk 0:01:18.5]} 99... Qxd3+ {[%clk 0:00:07.6]}
100. Kxd3 {[%clk 0:01:20.4]} 100... Kb5 {[%clk 0:00:06.4]} 101. Kd4 {[%clk
0:01:21]} 101... Ka6 {[%clk 0:00:03.2]} 102. Kc4 {[%clk 0:01:19.3]} 1-0

[Event "*** Titled Tuesday Blitz"]
[Site "Chess.com"]
[Date "2019.05.07"]
[Round "3"]
[White "kikoveiga"]
[Black "M1711"]
[Result "1/2-1/2"]
[WhiteElo "2279"]
[BlackElo "2443"]
[TimeControl "180+2"]
[EndTime "13:47:34 PDT"]
[Termination "Game drawn - insufficient material"]

1. Nf3 {[%clk 0:03:01.9]} 1... Nf6 {[%clk 0:02:58.4]} 2. c4 {[%clk 0:03:00.9]}
2... b6 {[%clk 0:03:00.3]} 3. g3 {[%clk 0:03:01.8]} 3... Bb7 {[%clk 0:03:00.1]}
4. Bg2 {[%clk 0:03:02.4]} 4... e6 {[%clk 0:03:02]} 5. O-O {[%clk 0:03:02.8]}
5... Be7 {[%clk 0:03:02.3]} 6. Nc3 {[%clk 0:03:01]} 6... O-O {[%clk 0:02:59.8]}
7. Re1 {[%clk 0:03:01.7]} 7... d5 {[%clk 0:03:00.4]} 8. d4 {[%clk 0:03:01.4]}
8... Nbd7 {[%clk 0:02:48.3]} 9. Ne5 {[%clk 0:02:52]} 9... c6 {[%clk 0:02:40]}
10. cxd5 {[%clk 0:02:44.6]} 10... exd5 {[%clk 0:02:39.9]} 11. Bf4 {[%clk
0:02:44.4]} 11... Nh5 {[%clk 0:02:21.6]} 12. Rc1 {[%clk 0:02:33.5]} 12... Nxf4
{[%clk 0:02:14.8]} 13. gxf4 {[%clk 0:02:33.6]} 13... Nxe5 {[%clk 0:01:53.6]} 14.
fxe5 {[%clk 0:02:33.3]} 14... Qd7 {[%clk 0:01:48.2]} 15. e4 {[%clk 0:02:33.4]}
15... dxe4 {[%clk 0:01:41.1]} 16. Nxe4 {[%clk 0:02:21.6]} 16... Rad8 {[%clk
0:01:40.2]} 17. Ng3 {[%clk 0:02:11.2]} 17... Qxd4 {[%clk 0:01:02.8]} 18. Qxd4
{[%clk 0:02:09.6]} 18... Rxd4 {[%clk 0:01:04.7]} 19. Bxc6 {[%clk 0:02:10.6]}
19... Bc8 {[%clk 0:00:56.2]} 20. Bf3 {[%clk 0:02:01.9]} 20... Be6 {[%clk
0:00:45.6]} 21. a3 {[%clk 0:02:01]} 21... a5 {[%clk 0:00:41.5]} 22. Kg2 {[%clk
0:01:58]} 22... Rfd8 {[%clk 0:00:39.8]} 23. Re2 {[%clk 0:01:50.3]} 23... g6
{[%clk 0:00:39.7]} 24. Ne4 {[%clk 0:01:49.3]} 24... Kg7 {[%clk 0:00:38.1]} 25.
Rc7 {[%clk 0:01:45.8]} 25... R4d7 {[%clk 0:00:34.7]} 26. Rec2 {[%clk 0:01:46.1]}
26... Bf5 {[%clk 0:00:22.9]} 27. Rxd7 {[%clk 0:01:40.9]} 27... Rxd7 {[%clk
0:00:24.8]} 28. Rc6 {[%clk 0:01:40.7]} 28... Bxe4 {[%clk 0:00:12.9]} 29. Bxe4
{[%clk 0:01:40.5]} 29... Bc5 {[%clk 0:00:14.5]} 30. e6 {[%clk 0:01:38.4]} 30...
fxe6 {[%clk 0:00:14]} 31. Rxe6 {[%clk 0:01:39]} 31... Rd2 {[%clk 0:00:15.4]} 32.
b4 {[%clk 0:01:37.2]} 32... axb4 {[%clk 0:00:14.7]} 33. axb4 {[%clk 0:01:37.9]}
33... Bxf2 {[%clk 0:00:07]} 34. Kf3 {[%clk 0:01:36.8]} 34... Bg1 {[%clk
0:00:05.6]} 35. h4 {[%clk 0:01:35.7]} 35... Rb2 {[%clk 0:00:06.8]} 36. h5 {[%clk
0:01:30.4]} 36... gxh5 {[%clk 0:00:06]} 37. Re7+ {[%clk 0:01:30.2]} 37... Kf6
{[%clk 0:00:07]} 38. Rxh7 {[%clk 0:01:30.8]} 38... Rxb4 {[%clk 0:00:06.7]} 39.
Rxh5 {[%clk 0:01:30.6]} 39... Rb3+ {[%clk 0:00:07.3]} 40. Kg2 {[%clk 0:01:27.6]}
40... Bc5 {[%clk 0:00:07.4]} 41. Bf3 {[%clk 0:01:27.1]} 41... Rb2+ {[%clk
0:00:06.6]} 42. Kg3 {[%clk 0:01:26.6]} 42... Rb4 {[%clk 0:00:05.5]} 43. Rh6+
{[%clk 0:01:24.8]} 43... Ke5 {[%clk 0:00:05.8]} 44. Rh5+ {[%clk 0:01:25.3]}
44... Kd6 {[%clk 0:00:06.6]} 45. Rh6+ {[%clk 0:01:25.3]} 45... Kc7 {[%clk
0:00:06.8]} 46. Rh7+ {[%clk 0:01:25.1]} 46... Kd6 {[%clk 0:00:07.7]} 47. Rh6+
{[%clk 0:01:25.4]} 47... Kd7 {[%clk 0:00:08.9]} 48. Rh7+ {[%clk 0:01:26.1]}
48... Be7 {[%clk 0:00:09.9]} 49. Kf2 {[%clk 0:01:25.7]} 49... b5 {[%clk
0:00:07.5]} 50. Ke3 {[%clk 0:01:26.1]} 50... Rb3+ {[%clk 0:00:08]} 51. Ke4
{[%clk 0:01:27.1]} 51... Kd6 {[%clk 0:00:06.4]} 52. Rh6+ {[%clk 0:01:26.9]}
52... Kc5 {[%clk 0:00:07.1]} 53. Re6 {[%clk 0:01:26.6]} 53... Bd6 {[%clk
0:00:08.4]} 54. Rh6 {[%clk 0:01:26.8]} 54... Rb4+ {[%clk 0:00:07.8]} 55. Kd3
{[%clk 0:01:23.8]} 55... Rb3+ {[%clk 0:00:09]} 56. Ke2 {[%clk 0:01:24.3]} 56...
Bf4 {[%clk 0:00:05.6]} 57. Rh5+ {[%clk 0:01:22.4]} 57... Kb6 {[%clk 0:00:04]}
58. Bd5 {[%clk 0:01:21.7]} 58... Re3+ {[%clk 0:00:03.7]} 59. Kd1 {[%clk
0:01:20.4]} 59... Bd6 {[%clk 0:00:04.8]} 60. Kd2 {[%clk 0:01:19.4]} 60... Re7
{[%clk 0:00:04.7]} 61. Kc2 {[%clk 0:01:20.3]} 61... Rc7+ {[%clk 0:00:04.9]} 62.
Kb3 {[%clk 0:01:20.5]} 62... Rg7 {[%clk 0:00:05.7]} 63. Be4 {[%clk 0:01:14]}
63... Rg3+ {[%clk 0:00:06.3]} 64. Kc2 {[%clk 0:01:14.7]} 64... Bc5 {[%clk
0:00:06.4]} 65. Bd3 {[%clk 0:01:15.4]} 65... Re3 {[%clk 0:00:05.5]} 66. Rh6+
{[%clk 0:01:14.7]} 66... Ka5 {[%clk 0:00:06.9]} 67. Rh5 {[%clk 0:01:13.7]} 67...
Kb4 {[%clk 0:00:06.4]} 68. Rh4+ {[%clk 0:01:14.5]} 68... Ka5 {[%clk 0:00:04.8]}
69. Rh5 {[%clk 0:01:15.3]} 69... Bb4 {[%clk 0:00:03.3]} 70. Rxb5+ {[%clk
0:01:15.5]} 70... Ka4 {[%clk 0:00:04.7]} 71. Rf5 {[%clk 0:01:14.4]} 71... Rg3
{[%clk 0:00:04.9]} 72. Re5 {[%clk 0:01:10.2]} 72... Rg2+ {[%clk 0:00:05.4]} 73.
Re2 {[%clk 0:01:10.8]} 73... Rg5 {[%clk 0:00:05.2]} 74. Re4 {[%clk 0:01:10.8]}
74... Rc5+ {[%clk 0:00:05.2]} 75. Rc4 {[%clk 0:01:11.3]} 75... Rh5 {[%clk
0:00:05]} 76. Re4 {[%clk 0:01:12]} 76... Ka5 {[%clk 0:00:04.2]} 77. Be2 {[%clk
0:01:11.9]} 77... Rd5 {[%clk 0:00:03.6]} 78. Kb3 {[%clk 0:01:12.1]} 78... Be1
{[%clk 0:00:04.6]} 79. Ra4+ {[%clk 0:01:07.9]} 79... Kb6 {[%clk 0:00:05.4]} 80.
Ra6+ {[%clk 0:01:07.9]} 80... Kc7 {[%clk 0:00:05.8]} 81. Bc4 {[%clk 0:01:08.7]}
81... Rg5 {[%clk 0:00:06]} 82. Re6 {[%clk 0:01:09.3]} 82... Bf2 {[%clk
0:00:06.6]} 83. Rf6 {[%clk 0:01:06.5]} 83... Bc5 {[%clk 0:00:05.3]} 84. Bb5
{[%clk 0:01:05.4]} 84... Be7 {[%clk 0:00:04.1]} 85. Rc6+ {[%clk 0:01:03.9]}
85... Kb7 {[%clk 0:00:05.1]} 86. Ka4 {[%clk 0:01:03.4]} 86... Rg8 {[%clk
0:00:03.7]} 87. Re6 {[%clk 0:01:02.3]} 87... Rg7 {[%clk 0:00:03.6]} 88. Ba6+
{[%clk 0:01:01.7]} 88... Ka7 {[%clk 0:00:04.2]} 89. Bc4 {[%clk 0:01:02]} 89...
Kb7 {[%clk 0:00:05]} 90. Kb5 {[%clk 0:01:02.4]} 90... Kc7 {[%clk 0:00:05.6]} 91.
Bd5 {[%clk 0:01:02.5]} 91... Kd7 {[%clk 0:00:06.3]} 92. Ra6 {[%clk 0:01:03]}
92... Rg5 {[%clk 0:00:06.6]} 93. Ra7+ {[%clk 0:01:02.4]} 93... Kd6 {[%clk
0:00:07.7]} 94. Kc4 {[%clk 0:01:01.4]} 94... Rg4+ {[%clk 0:00:03.3]} 95. Kd3
{[%clk 0:01:00.9]} 95... Rg3+ {[%clk 0:00:04]} 96. Ke2 {[%clk 0:01:01.4]} 96...
Bf6 {[%clk 0:00:04]} 97. Bf3 {[%clk 0:01:01]} 97... Bd4 {[%clk 0:00:04.3]} 98.
Ra6+ {[%clk 0:00:59.1]} 98... Ke5 {[%clk 0:00:05.2]} 99. Ra4 {[%clk 0:00:56]}
99... Rh3 {[%clk 0:00:04.6]} 100. Rc4 {[%clk 0:00:52]} 100... Rh2+ {[%clk
0:00:05.4]} 101. Kd3 {[%clk 0:00:52.1]} 101... Bg1 {[%clk 0:00:05.8]} 102. Re4+
{[%clk 0:00:52.6]} 102... Kf5 {[%clk 0:00:07.1]} 103. Bg4+ {[%clk 0:00:51.8]}
103... Kg5 {[%clk 0:00:08.4]} 104. Be2 {[%clk 0:00:52.2]} 104... Rh3+ {[%clk
0:00:08.3]} 105. Kd2 {[%clk 0:00:52.5]} 105... Bb6 {[%clk 0:00:06.4]} 106. Rg4+
{[%clk 0:00:52.4]} 106... Kf5 {[%clk 0:00:07.1]} 107. Rc4 {[%clk 0:00:50.2]}
107... Ba5+ {[%clk 0:00:08.3]} 108. Kc2 {[%clk 0:00:50.2]} 108... Kf6 {[%clk
0:00:06.6]} 109. Rc6+ {[%clk 0:00:49]} 109... Ke7 {[%clk 0:00:07.3]} 110. Rc5
{[%clk 0:00:47.6]} 110... Bb6 {[%clk 0:00:07.2]} 111. Rb5 {[%clk 0:00:45.1]}
111... Bd4 {[%clk 0:00:07.9]} 112. Rd5 {[%clk 0:00:45.1]} 112... Bf6 {[%clk
0:00:08.4]} 113. Rd7+ {[%clk 0:00:42.2]} 113... Ke8 {[%clk 0:00:05.4]} 114. Rb7
{[%clk 0:00:42.2]} 114... Rh2 {[%clk 0:00:05.5]} 115. Kd3 {[%clk 0:00:42.3]}
115... Be7 {[%clk 0:00:05.3]} 116. Bf3 {[%clk 0:00:41]} 116... Rh4 {[%clk
0:00:05]} 117. Rb5 {[%clk 0:00:33.7]} 117... Kd7 {[%clk 0:00:05.4]} 118. Rh5
{[%clk 0:00:30.7]} 118... Rb4 {[%clk 0:00:05]} 119. Rh6 {[%clk 0:00:29.1]}
119... Rb3+ {[%clk 0:00:05.4]} 120. Ke4 {[%clk 0:00:29.2]} 120... Bd6 {[%clk
0:00:06.1]} 121. Bg4+ {[%clk 0:00:27.8]} 121... Kc6 {[%clk 0:00:05.7]} 122. Be6
{[%clk 0:00:27.7]} 122... Rb4+ {[%clk 0:00:06.3]} 123. Kd3 {[%clk 0:00:26.7]}
123... Be5 {[%clk 0:00:03.8]} 124. Bc4+ {[%clk 0:00:24.1]} 124... Kc5 {[%clk
0:00:04.5]} 125. Re6 {[%clk 0:00:22.4]} 125... Bd6 {[%clk 0:00:03.5]} 126. Re4
{[%clk 0:00:20.3]} 126... Rb1 {[%clk 0:00:03.8]} 127. Rg4 {[%clk 0:00:20]}
127... Rd1+ {[%clk 0:00:04.5]} 128. Kc2 {[%clk 0:00:20.8]} 128... Rh1 {[%clk
0:00:04.7]} 129. Be2 {[%clk 0:00:21.3]} 129... Rh2 {[%clk 0:00:05.7]} 130. Kd3
{[%clk 0:00:22.1]} 130... Rh3+ {[%clk 0:00:06.6]} 131. Kc2 {[%clk 0:00:21.7]}
131... Be5 {[%clk 0:00:07.2]} 132. Rc4+ {[%clk 0:00:20.6]} 132... Kd5 {[%clk
0:00:08.6]} 133. Ra4 {[%clk 0:00:22.5]} 133... Bd4 {[%clk 0:00:06.5]} 134. Ba6
{[%clk 0:00:19.8]} 134... Rh2+ {[%clk 0:00:04.1]} 135. Kd3 {[%clk 0:00:20.5]}
135... Bc5 {[%clk 0:00:05.2]} 136. Bb7+ {[%clk 0:00:20.2]} 136... Kd6 {[%clk
0:00:05.3]} 137. Rg4 {[%clk 0:00:20.2]} 137... Rb2 {[%clk 0:00:05.5]} 138. Be4
{[%clk 0:00:17.4]} 138... Rb3+ {[%clk 0:00:05.8]} 139. Kc4 {[%clk 0:00:18.1]}
139... Rb4+ {[%clk 0:00:07.1]} 140. Kd3 {[%clk 0:00:19.3]} 140... Ke5 {[%clk
0:00:08.7]} 141. Rg5+ {[%clk 0:00:18.6]} 141... Kd6 {[%clk 0:00:06.6]} 142. Rd5+
{[%clk 0:00:19.1]} 142... Kc6 {[%clk 0:00:08.1]} 143. Rd4+ {[%clk 0:00:16.9]}
143... Kb6 {[%clk 0:00:09.4]} 144. Rxb4+ {[%clk 0:00:17.4]} 144... Bxb4 {[%clk
0:00:11.3]} 1/2-1/2

[Event "*** Titled Tuesday Blitz"]
[Site "Chess.com"]
[Date "2019.05.07"]
[Round "4"]
[White "champ2005"]
[Black "Korchmar_Vasiliy"]
[Result "1/2-1/2"]
[WhiteElo "2889"]
[BlackElo "2826"]
[TimeControl "180+2"]
[EndTime "13:49:12 PDT"]
[Termination "Game drawn by agreement"]

1. d4 {[%clk 0:03:01.5]} 1... Nf6 {[%clk 0:03:00.6]} 2. c4 {[%clk 0:03:01.6]}
2... g6 {[%clk 0:03:02]} 3. Nf3 {[%clk 0:03:02.3]} 3... Bg7 {[%clk 0:03:02.7]}
4. g3 {[%clk 0:03:03.5]} 4... c6 {[%clk 0:03:03.5]} 5. Bg2 {[%clk 0:03:04.3]}
5... d5 {[%clk 0:03:04.8]} 6. O-O {[%clk 0:03:05.1]} 6... O-O {[%clk 0:03:05.7]}
7. Qb3 {[%clk 0:03:05.5]} 7... Qb6 {[%clk 0:02:59.6]} 8. Nc3 {[%clk 0:03:06.3]}
8... Rd8 {[%clk 0:02:58.5]} 9. Rd1 {[%clk 0:03:02.6]} 9... Bf5 {[%clk
0:02:56.2]} 10. Ne5 {[%clk 0:02:45.8]} 10... Nbd7 {[%clk 0:02:45.3]} 1/2-1/2

[Event "*** Titled Tuesday Blitz"]
[Site "Chess.com"]
[Date "2019.05.07"]
[Round "4"]
[White "Thee-Chessboy"]
[Black "chessmaxusa"]
[Result "0-1"]
[WhiteElo "2361"]
[BlackElo "2550"]
[TimeControl "180+2"]
[EndTime "13:49:50 PDT"]
[Termination "chessmaxusa won by resignation"]

1. d4 {[%clk 0:03:01.9]} 1... c6 {[%clk 0:03:01.2]} 2. e4 {[%clk 0:03:00.7]}
2... d5 {[%clk 0:03:02.4]} 3. e5 {[%clk 0:03:00.9]} 3... Bf5 {[%clk 0:03:03]} 4.
Nf3 {[%clk 0:02:59.8]} 4... e6 {[%clk 0:03:03.5]} 5. Be2 {[%clk 0:02:59.6]} 5...
Ne7 {[%clk 0:03:04.5]} 6. O-O {[%clk 0:02:58.9]} 6... Nd7 {[%clk 0:03:06]} 7. c4
{[%clk 0:02:53.8]} 7... dxc4 {[%clk 0:03:04.5]} 8. Bxc4 {[%clk 0:02:54.1]} 8...
Nd5 {[%clk 0:03:06]} 9. Nc3 {[%clk 0:02:50.8]} 9... Be7 {[%clk 0:03:07.2]} 10.
Bd3 {[%clk 0:02:45.8]} 10... Bg4 {[%clk 0:03:05.7]} 11. h3 {[%clk 0:02:41.1]}
11... Bh5 {[%clk 0:03:06.3]} 12. Ne4 {[%clk 0:02:40.1]} 12... Bg6 {[%clk
0:03:05.2]} 13. Bg5 {[%clk 0:02:27.6]} 13... Bxe4 {[%clk 0:03:02.7]} 14. Bxe7
{[%clk 0:02:27.6]} 14... Bxf3 {[%clk 0:02:58.6]} 15. Bxd8 {[%clk 0:02:28]} 15...
Bxd1 {[%clk 0:02:59]} 0-1

[Event "*** Titled Tuesday Blitz"]
[Site "Chess.com"]
[Date "2019.05.07"]
[Round "4"]
[White "Alexander_Moskalenko"]
[Black "xamax2000"]
[Result "1/2-1/2"]
[WhiteElo "2866"]
[BlackElo "2632"]
[TimeControl "180+2"]
[EndTime "13:51:51 PDT"]
[Termination "Game drawn by agreement"]

1. Nf3 {[%clk 0:02:56]} 1... d5 {[%clk 0:02:51.4]} 2. g3 {[%clk 0:02:55.7]} 2...
c6 {[%clk 0:02:51.4]} 3. Bg2 {[%clk 0:02:57.3]} 3... Bg4 {[%clk 0:02:52.8]} 4.
O-O {[%clk 0:02:59]} 4... Nd7 {[%clk 0:02:53.9]} 5. d4 {[%clk 0:03:00.6]} 5...
e6 {[%clk 0:02:48]} 6. Nbd2 {[%clk 0:03:02.2]} 6... Ngf6 {[%clk 0:02:45.7]} 7.
Re1 {[%clk 0:03:03.6]} 7... Be7 {[%clk 0:02:44.6]} 8. e4 {[%clk 0:02:50]} 8...
h6 {[%clk 0:02:42.2]} 9. c3 {[%clk 0:02:43.5]} 9... O-O {[%clk 0:02:41.4]} 10.
Qb3 {[%clk 0:02:37.4]} 10... Rb8 {[%clk 0:02:20.3]} 11. a4 {[%clk 0:02:22]}
11... a5 {[%clk 0:02:06.1]} 12. Nh4 {[%clk 0:01:58.7]} 12... Bh5 {[%clk
0:01:27.2]} 13. Nhf3 {[%clk 0:01:47.7]} 1/2-1/2

[Event "*** Titled Tuesday Blitz"]
[Site "Chess.com"]
[Date "2019.05.07"]
[Round "4"]
[White "GelmanAlexander"]
[Black "GameOverBro"]
[Result "1-0"]
[WhiteElo "2577"]
[BlackElo "2420"]
[TimeControl "180+2"]
[EndTime "13:52:15 PDT"]
[Termination "GelmanAlexander won by resignation"]

1. d4 {[%clk 0:03:01.9]} 1... d6 {[%clk 0:02:59.9]} 2. Nc3 {[%clk 0:03:02.8]}
2... Nf6 {[%clk 0:03:00.7]} 3. Bf4 {[%clk 0:03:03.7]} 3... Nbd7 {[%clk
0:03:02.6]} 4. Qd2 {[%clk 0:03:04.8]} 4... e5 {[%clk 0:03:03.5]} 5. Bg5 {[%clk
0:02:56.4]} 5... c6 {[%clk 0:03:04.1]} 6. e4 {[%clk 0:02:49.1]} 6... Be7 {[%clk
0:03:05.3]} 7. Nf3 {[%clk 0:02:48.1]} 7... Qc7 {[%clk 0:03:06.4]} 8. a4 {[%clk
0:02:48.5]} 8... h6 {[%clk 0:03:05.7]} 9. Bh4 {[%clk 0:02:48]} 9... Nf8 {[%clk
0:03:06.8]} 10. Bc4 {[%clk 0:02:45.5]} 10... Ng6 {[%clk 0:03:07.9]} 11. Bg3
{[%clk 0:02:46.5]} 11... O-O {[%clk 0:03:08.5]} 12. h3 {[%clk 0:02:42.5]} 12...
Nh5 {[%clk 0:03:09]} 13. Bh2 {[%clk 0:02:43.4]} 13... Nhf4 {[%clk 0:03:09]} 14.
O-O {[%clk 0:02:42.5]} 14... Bxh3 {[%clk 0:03:06.2]} 15. gxh3 {[%clk 0:02:43.2]}
15... Qc8 {[%clk 0:03:07.6]} 16. Kh1 {[%clk 0:01:58.6]} 16... Qxh3 {[%clk
0:03:07.5]} 17. Ne1 {[%clk 0:01:58.3]} 17... Bg5 {[%clk 0:03:05.7]} 18. Qe3
{[%clk 0:01:46.2]} 18... exd4 {[%clk 0:02:58.4]} 19. Qxh3 {[%clk 0:01:45]} 19...
Nxh3 {[%clk 0:02:59.2]} 20. Ne2 {[%clk 0:01:41.3]} 20... Rad8 {[%clk 0:02:40.3]}
21. f4 {[%clk 0:01:39.5]} 21... Bh4 {[%clk 0:02:40.8]} 22. Nf3 {[%clk
0:01:37.9]} 22... d5 {[%clk 0:02:31.5]} 23. exd5 {[%clk 0:01:37.8]} 23... cxd5
{[%clk 0:02:32.9]} 24. Bd3 {[%clk 0:01:30]} 24... Nf2+ {[%clk 0:02:28.1]} 25.
Kg2 {[%clk 0:01:31]} 25... Ne4 {[%clk 0:02:27.1]} 26. f5 {[%clk 0:01:23.7]}
26... Ne7 {[%clk 0:02:23.7]} 27. Nxh4 {[%clk 0:01:24.1]} 27... g5 {[%clk
0:02:23.5]} 28. fxg6 {[%clk 0:01:24.8]} 1-0